Workbook

Sheet Price Bid
A1: BHARAT HEAVY ELECTRICAL LIMITED , JHANSI
A2: FACTORY CIVIL DEPARTMENT
A3: Price bid
A4: Name of Work:- Misc. civil maintenance work in factory area.
A5: Tender Enquiry No-FCX/TW/23/03
A6: Part A-DSR-ITEM
A7: Sl. No. | B7: DSR 2016 | C7: Description of Work | D7: % allocation | E7: Unit | F7: Quantity | G7: Analysed rate of DSR-2016 | H7: Amount (RS) | I7: Rate | J7: Amount (Rs)
A8: (A) | C8: (B) | E8: (D) | F8: ( E ) | G8: ( F ) | H8: ( G=E*F ) | I8: Rate | J8: Amt
A9: 1 | B9: 1.1.1/68 | C9: By Mechanical Transport including loading, unloading and stacking: Lime, moorum, building rubbish | D9: =H9*0.572/372176.67 -> 0.001813854694 | E9: Cum | F9: 15 | G9: 78.68 | H9: =F9*G9 -> 1180.2 | I9: =ROUND(J9/F9,2) -> 1.21 | J9: =$J$56*D9 -> 18.13854694
A10: 2 | B10: 1.1.2/68 | C10: By Mechanical Transport including loading, unloading and stacking: Carriage of Earth up 1 km. | D10: =H10*0.572/372176.67 -> 0.003022783776 | E10: Cum | F10: 20 | G10: 98.34 | H10: =F10*G10 -> 1966.8 | I10: =ROUND(J10/F10,2) -> 1.51 | J10: =$J$56*D10 -> 30.22783776
A11: 3 | B11: 2.6.1/76 | C11: Earth work in excavation by mechanical means (Hydraulic excavator)/manual means over areas (exceeding 30 cm in depth, 1.5 m in width as well as 10 sqm on plan) including getting out and disposal of excavated earth lead upto 50 m and lift upto 1.5 m, as directed by Engineer-in-charge. | D11: 0.003871462443 | E11: Cum | F11: 20 | G11: 125.95 | H11: 2519 | I11: 1.94 | J11: 38.71462443
A12: 4 | B12: 2.25/79 | C12: Filling available excavated earth (excluding rock) in trenches, plinth, sides of foundations etc. in layers not exceeding 20cm in depth, consolidating each deposited layer by ramming and watering, lead up to 50 m and lift upto 1.5 m. | D12: 0.001932657412 | E12: Cum | F12: 10 | G12: 125.75 | H12: 1257.5 | I12: 1.93 | J12: 19.32657412
A13: 5 | B13: 4.1.3/88 | C13: Providing and laying in position cement concrete of specified grade excluding the cost of centering and shuttering - All work up to plinth level : "1:2:4 (1 cement : 2 coarse sand (zone-III) : 4 graded stone aggregate 20 mm nominal size). | D13: 0.02983666483 | E13: Cum | F13: 6 | G13: 3235.58 | H13: 19413.48 | I13: 49.73 | J13: 298.3666483
A14: 6 | B14: 4.1.6/88 | C14: Providing and laying in position cement concrete of specified grade excluding the cost of centering and shuttering - All work up to plinth level : 1:3:6 (1 Cement : 3 coarse sand (zone-III): 6 graded stone aggregate 40 mm nominal size). | D14: 0.04981184339 | E14: Cum | F14: 10 | G14: 3241.05 | H14: 32410.5 | I14: 49.81 | J14: 498.1184339
A15: 7 | B15: 4.1.8/88 | C15: Providing and laying in position cement concrete of specified grade excluding the cost of centering and shuttering - All work up to plinth level : 1:4:8 (1 Cement : 4 coarse sand (zone-III) : 8 graded stone aggregate 40 mm nominal size) | D15: 0.05029151129 | E15: Cum | F15: 10 | G15: 3272.26 | H15: 32722.6 | I15: 50.29 | J15: 502.9151129
A16: 8 | B16: 5.1.3/97 | C16: Providing and laying in position specified grade of reinforced cement concrete, excluding the cost of centering, shuttering, finishing and reinforcement - All work up to plinth level : 1:2:4 (1 cement : 2 coarse sand : 4 graded stone aggregate 20 mm nominal size). | D16: 0.1083898827 | E16: Cum | F16: 20 | G16: 3526.24 | H16: 70524.8 | I16: 54.19 | J16: 1083.898827
A17: 9 | B17: 5.3/97 | C17: Reinforced cement concrete work in beams, suspended floors, roofs having slope up to 15° landings, balconies, shelves, chajjas, lintels, bands, plain window sills, staircases and spiral stair cases above plinth level up to floor five level, excluding the cost of centering, shuttering, finishing and reinforcement, with 1:1.5:3 (1 cement: 1.5 coarse sand (zone-III): 3 graded stone aggregate 20 mm nominal size). | D17: 0.05668595616 | E17: Cum | F17: 8 | G17: 4610.4 | H17: 36883.2 | I17: 70.86 | J17: 566.8595616
A18: 10 | B18: 5.9.1/98 | C18: Centering and shuttering including strutting, propping etc. and removal of form for all heights : Foundations, footings, bases of columns, etc. for mass concrete | D18: 0.04251538926 | E18: Sqm | F18: 150 | G18: 184.42 | H18: 27663 | I18: 2.83 | J18: 425.1538926
A19: 11 | B19: 5.9.3/98 | C19: Centering and shuttering including strutting, propping etc. and removal of form for all heights : Suspended floors, roofs, landings, balconies and access platform | D19: 0.06416268919 | E19: Sqm | F19: 100 | G19: 417.48 | H19: 41748 | I19: 6.42 | J19: 641.6268919
A20: 12 | B20: 5.22.6 | C20: Steel reinforcement for R.C.C. work including straightening, cutting,bending, placing in position and binding all complete upto plinth level. Thermo-Mechanically Treated bars of grade Fe-500D or more.(Steel Shall be issued free of cost by BHEL) | D20: 0.01182340634 | E20: Kg | F20: =(F16+F17)*25 -> 700 | G20: 10.99 | H20: =F20*G20 -> 7693 | I20: 0.17 | J20: 118.2340634
A21: 13 | B21: 6.1.2/111 | C21: Brick work with common burnt clay F.P.S. (non modular) bricks of class designation 7.5 in foundation and plinth in: Cement mortar 1:6 (1 cement : 6 coarse sand) | D21: 0.03010204213 | E21: Cum | F21: 5 | G21: 3917.23 | H21: 19586.15 | I21: 60.2 | J21: 301.0204213
A22: 14 | B22: 6.4.2/111 | C22: Brick work with common burnt clay F.P.S. (non modular) bricks of class designation 7.5 in superstructure above plinth level up to floor V level in all shapes and sizes in : Cement mortar 1:6 (1 cement : 6 coarse sand) | D22: 0.08757441696 | E22: Cum | F22: 12 | G22: 4748.42 | H22: 56981.04 | I22: 72.98 | J22: 875.7441696
A23: 15 | B23: 6.8/111 | C23: Brick work 7 cm thick with common burnt clay F.P.S. (non modular) brick of class designation 7.5 in cement mortar 1:3 (1 cement : 3 coarse sand) in superstructure above plinth level and upto floor five level. | D23: 0.01305877018 | E23: Sqm | F23: 20 | G23: 424.84 | H23: 8496.8 | I23: 6.53 | J23: 130.5877018
A24: 16 | B24: 6.13.2/112 | C24: Half brick masonry with common burnt clay F.P.S. (non modular) bricks of class designation 7.5 in superstructure above plinth level up to floor V level. Cement mortar 1:4 (1 cement :4 coarse sand) | D24: 0.01737654969 | E24: Sqm | F24: 20 | G24: 565.31 | H24: 11306.2 | I24: 8.69 | J24: 173.7654969
A25: 17 | B25: 7.1.1/119 | C25: Random rubble masonry with hard stone in foundation and plinth including levelling up with cement concrete 1:6:12 (1 cement : 6 coarse sand : 12 graded stone aggregate 20 mm nominal size) upto plinth level with : Cement mortar 1:6 (1 cement : 6 coarse sand) | D25: 0.02050033883 | E25: Cum | F25: 4 | G25: 3334.68 | H25: 13338.72 | I25: 51.25 | J25: 205.0033883
A26: 18 | B26: 11.1.2/191 | C26: Brick on edge flooring with bricks of class designation 7.5 on a bed of 12 mm cement mortar, including filling the joints with same mortar, with common burnt clay non modular bricks: 1:6 (1cement : 6 coarse sand) | D26: 0.007733242387 | E26: Sqm | F26: 10 | G26: 503.17 | H26: 5031.7 | I26: 7.73 | J26: 77.33242387
A27: 19 | B27: 11.2/191 | C27: Dry brick on edge flooring in required pattern with bricks of class designation 7.5 on a bed of 12 mm mud mortar, including filling joints with sand, with common burnt clay non modular bricks. | D27: 0.007125857728 | E27: Sqm | F27: 10 | G27: 463.65 | H27: 4636.5 | I27: 7.13 | J27: 71.25857728
A28: 20 | B28: 11.3.1/191 | C28: Cement concrete flooring 1:2:4 (1 cement : 2 coarse sand : 4 graded stone aggregate) finished with a floating coat of neat cement, including cement slurry, but excluding the cost of nosing of steps etc. complete.40 mm thick with 20 mm nominal size stone aggregate | D28: 0.01135710951 | E28: Sqm | F28: 30 | G28: 246.32 | H28: 7389.6 | I28: 3.79 | J28: 113.5710951
A29: 21 | B29: 11.4/191 | C29: 52 mm thick cement concrete flooring with concrete hardener topping, under layer 40 mm thick cement concrete 1:2:4 (1 cement : 2 coarse sand : 4 graded stone aggregate 20 mm nominal size) and top layer 12 mm thick cement hardener consisting of mix 1:2 (1 cement hardener mix : 2 graded stone aggregate 6 mm nominal size) by volume, hardening compound mixed @ 2 litre per 50 kg of cement or as per manufacturer's specifications. This includes cost of cement slurry, but excluding the cost of nosing of steps etc. complete. | D29: 0.00607891838 | E29: Sqm | F29: 10 | G29: 395.53 | H29: 3955.3 | I29: 6.08 | J29: 60.7891838
A30: 22 | B30: 11.38/196 | C30: Providing and laying Ceramic glazed floor tiles of size 300x300 mm (thickness to be specified by the manufacturer), of 1st quality conforming to IS : 15622, of approved make, in all colours, shades, except White, Ivory, Grey, Fume Red Brown, laid on 20 mm thick bed of cement mortar 1:4 (1 Cement : 4 Coarse sand), jointing with grey cement slurry @ 3.3kg/sqm including pointing the joints with white cement and matching pigments etc., complete | D30: 0.01418924029 | E30: Sqm | F30: 15 | G30: 615.49 | H30: 9232.35 | I30: 9.46 | J30: 141.8924029
A31: 23 | B31: 13.1.2/227 | C31: 12 mm cement plaster of mix : 1:6 (1 cement: 6 fine sand) | D31: 0.01561879201 | E31: Sqm | F31: 75 | G31: 135.5 | H31: 10162.5 | I31: 2.08 | J31: 156.1879201
A32: 24 | B32: 13.2.2/227 | C32: 15 mm cement plaster on the rough side of single or half brick wall of mix : 1:6 (1 cement: 6 fine sand) | D32: 0.00956016077 | E32: Sqm | F32: 40 | G32: 155.51 | H32: 6220.4 | I32: 2.39 | J32: 95.6016077
A33: 25 | B33: 13.3.2/227 | C33: 20 mm cement plaster of mix : 1:6 (1 cement: 6 fine sand) | D33: 0.004193443936 | E33: Sqm | F33: 15 | G33: 181.9 | H33: 2728.5 | I33: 2.8 | J33: 41.93443936
A34: 26 | B34: 13.8.2/227 | C34: 15 mm cement plaster on rough side of single or half brick wall finished with a floating coat of neat cement of mix : 1:4 (1 cement: 4 fine sand) | D34: 0.004216728039 | E34: Sqm | F34: 15 | G34: 182.91 | H34: 2743.65 | I34: 2.81 | J34: 42.16728039
A35: 27 | B35: 15.2.1/253 | C35: Demolishing cement concrete manually/ by mechanical means including disposal of material within 50 metres lead as per direction of Engineer - in - charge. Nominal concrete 1:3:6 or richer mix (i/c equivalent design mix) | D35: 0.01532370635 | E35: Cum | F35: 10 | G35: 997.05 | H35: 9970.5 | I35: 15.32 | J35: 153.2370635
A36: 28 | B36: 15.2.2/253 | C36: Demolishing cement concrete manually/ by mechanical means including disposal of material within 50 metres lead as per direction of Engineer - in - charge. Nominal concrete 1:4:8 or leaner mix (i/c equivalent design mix) | D36: 0.01418140207 | E36: Cum | F36: 15 | G36: 615.15 | H36: 9227.25 | I36: 9.45 | J36: 141.8140207
A37: 29 | B37: 15.3/253 | C37: Demolishing R.C.C. work manually/ by mechanical means including stacking of steel bars and disposal of unserviceable material within 50 metres lead as per direction of Engineer - in- charge. | D37: 0.03353256667 | E37: Cum | F37: 15 | G37: 1454.55 | H37: 21818.25 | I37: 22.36 | J37: 335.3256667
A38: 30 | B38: 15.7.4/253 | C38: Demolishing brick work manually/ by mechanical means including stacking of serviceable material and disposal of unserviceable material within 50 metres lead as per direction of Engineer-in-charge. | D38: 0.01942839405 | E38: Cum | F38: 15 | G38: 842.75 | H38: 12641.25 | I38: 12.95 | J38: 194.2839405
A39: 31 | B39: 15.9.2/253 | C39: Demolishing stone rubble masonry manually/ by mechanical means including stacking of serviceable material and disposal of unserviceable material within 50 metres lead as per direction of Engineer-in-charge : In cement mortar | D39: 0.01081965401 | E39: Cum | F39: 7 | G39: 1005.7 | H39: 7039.9 | I39: 15.46 | J39: 108.1965401
A40: 32 | B40: 15.12.1/254 | C40: Dismantling doors, windows and clerestory windows (steel or wood) shutter including chowkhats, architrave, holdfasts etc. complete and stacking within 50 metres lead : Of area 3 sq. metres and below | D40: 0.002426003758 | E40: Each | F40: 10 | G40: 157.85 | H40: 1578.5 | I40: 2.43 | J40: 24.26003758
A41: 33 | B41: 15.56/258 | C41: Dismantling old plaster or skirting raking out joints and cleaning the surface for plaster including disposal of rubbish to the dumping ground within 50 metres lead. | D41: 0.0006885332173 | E41: Sqm | F41: 20 | G41: 22.4 | H41: 448 | I41: 0.34 | J41: 6.885332173
A42: 34 | B42: 19.1.5/354 | C42: Providing, laying and jointing glazed stoneware pipes class SP-1 with stiff mixture of cement mortar in the proportion of 1:1 (1 cement : 1 fine sand) including testing of joints etc. complete : 300 mm diameter | D42: 0.01040176968 | E42: Mtr | F42: 10 | G42: 676.8 | H42: 6768 | I42: 10.4 | J42: 104.0176968
A43: 35 | B43: 19.3.5/354 | C43: Providing and laying cement concrete 1:5:10 (1 cement : 5 coarse sand : 10 graded stone aggregate 40 mm nominal size) up to haunches of S.W. pipes including bed concrete as per standard design : 300 mm diameter S.W. pipe | D43: 0.008886381836 | E43: Mtr | F43: 10 | G43: 578.2 | H43: 5782 | I43: =ROUND(J43/F43,2) -> 8.89 | J43: =$J$56*D43 -> 88.86381836
A44: 36 | B44: 0293/7 | C44: Stone Aggregate (Single size) : 40 mm nominal size | D44: 0.0210409911 | E44: Cum | F44: 10 | G44: 1369.05 | H44: 13690.5 | I44: 21.04 | J44: 210.409911
A45: 37 | B45: 0295/8 | C45: Stone Aggregate (Single size) : 20 mm nominal size | D45: 0.02625912 | E45: Cum | F45: 12 | G45: 1423.81 | H45: 17085.72 | I45: 21.88 | J45: 262.5912
A46: 38 | B46: 0297/8 | C46: Stone agrgregate - 10 MM | D46: 0.02625912 | E46: Cum | F46: 12 | G46: 1423.81 | H46: 17085.72 | I46: 21.88 | J46: 262.5912
A47: 39 | B47: 0982/15 | C47: Coarse sand | D47: 0.02019938219 | E47: Cum | F47: 10 | G47: 1314.29 | H47: 13142.9 | I47: 20.2 | J47: 201.9938219
A48: 40 | B48: 983/15 | C48: Fine Sand | D48: 0.0127928857 | E48: Cum | F48: 10 | G48: 832.38 | H48: 8323.8 | I48: 12.79 | J48: 127.928857
A49: 41 | B49: 2602/27 | C49: FPS Bricks class designation 7.5 | D49: 0.02272422428 | E49: 1000 Nos | F49: 3 | G49: 4928.57 | H49: 14785.71 | I49: 75.75 | J49: 227.2422428
A50: 42 | B50: DSR 2016 | C50: Item covered in DSR 2016 but not covered above | D50: 0.03073809006 | E50: DSR | F50: 20000 | G50: 1 | H50: =F50*G50 -> 20000 | I50: =ROUND(J50/F50,2) -> 0.02 | J50: =$J$56*D50 -> 307.3809006
A51: Sub Total (A) | D51: 0.9485459373 | G51: Rs. | H51: =SUM(H9:H50) -> 617179.49 | J51: 9485.459373
A53: Part 'B' (NON DSR ITEM)
A54: 40 | C54: Work for unloading the cement bags(50 kg) from trucks and stacking it inside closed shed on wooden pallets as per instruction of Engineer -in charge. | D54: =H54/372176.67 -> 0.0514540581 | E54: Nos | F54: 5000 | G54: 3.83 | H54: =F54*G54 -> 19150 | I54: =ROUND(J54/F54,2) -> 0.1 | J54: =$J$56*D54 -> 514.540581
A55: Total D | D55: =SUM(D54) -> 0.0514540581 | G55: Rs. | H55: =SUM(H54) -> 19150 | J55: =$J$56*D55 -> 514.540581
A56: Grand Total G=( E+F) | D56: =D51+D55 -> 0.9999999954 | J56: 10000
A57: In words | D57: =rup(J56) -> Rupees Ten Thousand Only
B59: Note -GST extra as applicable
B60: 1. Bidder has to quote in above unlocked cell (J-56) only. Item rate shall be calculated automatically. Calculated item rates upto two decimal points may be adjusted w.r.t. gross total amount and it shall be the itemwise final rate for execution of contract and all other purposes.
B61: 2. Quoted gross total amount should be considered only if quoted in this excel sheet and print out of this should only be considered for evaluation. If Price is quoted in any other format other than the Excel Sheet enclosed to the NIT , the offer of the bidder will be rejected
B62: 3.During the execution , the quantity of various items may vary to any extent depending on requirement of work/site and as per discretion of BHEL.
D65: (Signature and Seal of Contractor )
